fUSD/lending_fUSD_20240409
["ID","MTS","AMOUNT","RATE_DAILY","PERIOD"]
[321977583,1712669450954,-500.0,0.00020499,2]
[321977584,1712669450963,-500.0,0.00020499,2]
[321977585,1712669450972,-633.36,0.00020499,2]
[321977586,1712669450982,-676.55,0.00020499,2]
[321977587,1712669450993,-500.0,0.00020499,2]
[321977588,1712669451004,-898.76,0.00020499,2]
[321977589,1712669451014,-500.0,0.00020499,2]
[321977590,1712669451025,-831.54,0.00020499,2]
[321977591,1712669451036,-1595.98,0.00020499,2]
[321977592,1712669451046,-696.88,0.00020499,2]
[321977593,1712669451055,-500.0,0.00020499,2]
[321977594,1712669451065,-593.0,0.00020499,2]
[321977595,1712669451076,-980.28,0.00020499,2]
[321977596,1712669451085,-1443.36,0.00020499,2]
[321977597,1712669451095,-935.76,0.00020499,2]
[321977598,1712669451106,-859.38,0.00020499,2]
[321977599,1712669451115,-502.57,0.00020499,2]
[321977600,1712669451124,-1471.21,0.00020499,2]
[321977601,1712669451133,-1918.02,0.00020499,2]
[321977602,1712669451143,-1293.32,0.00020499,2]
[321977603,1712669451153,-758.62,0.00020499,2]
[321977604,1712669451163,-500.0,0.00020499,2]
[321977605,1712669451173,-1542.79,0.00020499,2]
[321977606,1712669451182,-1024.52,0.00020499,2]
[321977607,1712669451193,-1204.63,0.00020499,2]
[321977608,1712669451203,-500.0,0.00020499,2]
[321977609,1712669451213,-500.0,0.00020499,2]
[321977610,1712669451223,-1015.02,0.00020499,2]
[321977611,1712669451232,-756.64,0.00020499,2]
[321977612,1712669451243,-645.2,0.00020499,2]
[321977613,1712669451253,-1078.26,0.00020499,2]
[321977614,1712669451262,-500.0,0.00020499,2]
[321977615,1712669451271,-1736.53,0.00020499,2]
[321977616,1712669451281,-1530.87,0.00020499,2]
[321977617,1712669451290,-1508.87,0.00020499,2]
[321977618,1712669451300,-500.0,0.00020499,2]
[321977619,1712669451309,-860.04,0.00020499,2]
[321977620,1712669451319,-880.45,0.00020499,2]
[321977621,1712669451328,-154.11421303,0.000205,2]
[321977622,1712669451337,-510.0,0.00020547,2]
[321977623,1712669451347,-907.38533158,0.00020566,2]
[321977624,1712669451358,-290.40318471,0.00020569,2]
[321977625,1712669451367,-236.11118748,0.00020569,2]
[321977626,1712669451376,-393.0461,0.00020569,2]
[321977627,1712669451386,-303.04564144,0.0002057,2]
[321977628,1712669451397,-2202.19018734,0.0002057,2]
[321977629,1712669451405,-500.0,0.00020573,2]
[321977630,1712669451416,-16244.4997,0.00020574,2]
[321977631,1712669451425,-500.0,0.00020574,2]
[321977632,1712669451435,-36793.55751359,0.000206,2]
[321977633,1712669451448,-2722.94834882,0.00020605,2]
[321977634,1712669451458,-7594.07922247,0.00020605,2]
[321977635,1712669451467,-907.38533158,0.0002065,2]
[321977636,1712669451478,-38049.73964386,0.00020651,2]
[321977637,1712669451488,-1025.31,0.00020667,2]
[321977638,1712669451498,-8881.2582915,0.00020668,2]
[321977639,1712669451507,-1240.66085517,0.00020669,2]
[321977640,1712669451517,-1025.31,0.00020669,2]
[321977641,1712669451528,-2520.3,0.00020669,2]
[321977642,1712669451539,-2953.14,0.00020669,2]
[321977643,1712669451550,-500.0,0.00020669,2]
[321977644,1712669451559,-500.0,0.00020669,2]
[321977645,1712669451570,-606.0,0.0002067,2]
[321977646,1712669451580,-285.46840956,0.0002067,2]
[321977647,1712669451591,-1848.42778418,0.0002067,2]
[321977648,1712669451601,-155.0,0.0002067,2]
[321977649,1712669451615,-500.0,0.0002067,2]
[321977650,1712669451626,-14081.06,0.0002067,2]
[321977651,1712669451636,-500.0,0.00020671,2]
[321977652,1712669451648,-500.0,0.00020671,2]
[321977653,1712669451660,-500.0,0.00020671,2]
[321977654,1712669451671,-679.61,0.00020671,2]
[321977655,1712669451683,-500.0,0.00020671,2]
[321977656,1712669451693,-658.78,0.00020671,2]
[321977657,1712669451703,-500.0,0.00020671,2]
[321977658,1712669451713,-550.36,0.00020671,2]
[321977659,1712669451722,-500.0,0.00020671,2]
[321977660,1712669451732,-634.48,0.00020671,2]
[321977661,1712669451742,-883.32,0.00020671,2]
[321977662,1712669451752,-500.0,0.00020671,2]
[321977663,1712669451762,-657.1,0.00020671,2]
[321977664,1712669451772,-500.0,0.00020671,2]
[321977665,1712669451782,-500.0,0.00020671,2]
[321977666,1712669451792,-500.0,0.00020671,2]
[321977667,1712669451803,-518.61,0.00020671,2]
[321977668,1712669451813,-500.0,0.00020671,2]
[321977669,1712669451823,-605.42,0.00020671,2]
[321977670,1712669451833,-500.0,0.00020671,2]
[321977671,1712669451843,-288.19395781,0.00020671,2]
[321977672,1712669451852,-500.0,0.00020671,2]
[321977673,1712669451865,-500.0,0.00020671,2]
[321977674,1712669451875,-413.9,0.00020671,2]
[321977675,1712669451885,-520.91,0.00020671,2]
[321977676,1712669451895,-500.0,0.00020671,2]
[321977677,1712669451905,-500.0,0.00020671,2]
[321977678,1712669451915,-500.0,0.00020671,2]
[321977679,1712669451925,-500.0,0.00020671,2]
[321977680,1712669451935,-507.13,0.00020671,2]
[321977681,1712669451945,-500.0,0.00020671,2]
[321977682,1712669451955,-500.0,0.00020671,2]
[321977683,1712669451965,-500.0,0.00020671,2]
[321977684,1712669451975,-500.0,0.00020671,2]
[321977685,1712669451986,-500.0,0.00020671,2]
[321977686,1712669451997,-500.0,0.00020671,2]
[321977687,1712669452008,-519.34631885,0.00020671,2]
[321977688,1712669452018,-225.17264053,0.00020671,2]
[321977689,1712669452028,-500.0,0.00020671,2]
[321977690,1712669452038,-517.9,0.00020671,2]
[321977691,1712669452047,-500.0,0.00020671,2]
[321977692,1712669452057,-723.07,0.00020671,2]
[321977693,1712669452068,-500.0,0.00020671,2]
[321977694,1712669452078,-500.0,0.00020671,2]
[321977695,1712669452087,-500.0,0.00020671,2]
[321977696,1712669452097,-500.0,0.00020671,2]
[321977697,1712669452109,-500.0,0.00020671,2]
[321977698,1712669452118,-500.0,0.00020671,2]
[321977699,1712669452127,-500.0,0.00020671,2]
[321977700,1712669452137,-500.0,0.00020671,2]
[321977701,1712669452146,-500.0,0.00020671,2]
[321977702,1712669452156,-500.0,0.00020671,2]
[321977703,1712669452166,-500.0,0.00020671,2]
[321977704,1712669452176,-500.0,0.00020671,2]
[321977705,1712669452187,-500.0,0.00020671,2]
[321977706,1712669452197,-500.0,0.00020671,2]
[321977707,1712669452206,-714.46,0.00020671,2]
[321977708,1712669452215,-500.0,0.00020671,2]
[321977709,1712669452225,-500.0,0.00020671,2]
[321977710,1712669452234,-500.0,0.00020671,2]
[321977711,1712669452243,-500.0,0.00020671,2]
[321977712,1712669452252,-1058.83,0.00020671,2]
[321977713,1712669452263,-500.0,0.00020671,2]
[321977714,1712669452273,-500.0,0.00020671,2]
[321977715,1712669452284,-1506.28,0.00020671,2]
[321977716,1712669452294,-852.05,0.00020671,2]
[321977717,1712669452303,-500.0,0.00020671,2]
[321977718,1712669452314,-164.59158464,0.00020671,2]
[321977719,1712669452325,-500.0,0.00020671,2]
[321977720,1712669452335,-516.77206142,0.00020671,2]
[321977721,1712669452346,-500.0,0.00020671,2]
[321977722,1712669452358,-500.0,0.00020671,2]
[321977723,1712669452368,-500.0,0.00020671,2]
[321977724,1712669452379,-852.63,0.00020671,2]
[321977725,1712669452388,-500.0,0.00020671,2]
[321977726,1712669452398,-500.0,0.00020671,2]
[321977727,1712669452406,-500.0,0.00020671,2]
[321977728,1712669452416,-500.0,0.00020671,2]
[321977729,1712669452426,-500.0,0.00020671,2]
[321977730,1712669452437,-611.25,0.00020671,2]
[321977731,1712669452446,-500.0,0.00020671,2]
[321977732,1712669452459,-500.0,0.00020671,2]
[321977733,1712669452468,-500.0,0.00020671,2]
[321977734,1712669452479,-532.07,0.00020671,2]
[321977735,1712669452490,-512.83622781,0.00020671,2]
[321977736,1712669452499,-891.84,0.00020671,2]
[321977737,1712669452508,-594.84103034,0.00020671,2]
[321977738,1712669452517,-500.0,0.00020671,2]
[321977739,1712669452527,-500.0,0.00020671,2]
[321977740,1712669452537,-500.0,0.00020671,2]
[321977741,1712669452547,-919.67,0.00020671,2]
[321977742,1712669452555,-500.0,0.00020671,2]
[321977743,1712669452564,-1332.51,0.00020671,2]
[321977744,1712669452574,-500.0,0.00020671,2]
[321977745,1712669452583,-2023.02,0.00020671,2]
[321977746,1712669452593,-500.0,0.00020671,2]
[321977747,1712669452602,-682.47,0.00020671,2]
[321977748,1712669452615,-500.0,0.00020671,2]
[321977749,1712669452624,-172.56738881,0.00020671,2]
[321977750,1712669452634,-595.69369132,0.00020671,2]
[321977751,1712669452643,-500.0,0.00020671,2]
[321977752,1712669452653,-500.0,0.00020671,2]
[321977753,1712669452662,-642.94,0.00020671,2]
[321977754,1712669452672,-891.01,0.00020671,2]
[321977755,1712669452681,-500.0,0.00020671,2]
[321977756,1712669452690,-500.0,0.00020671,2]
[321977757,1712669452700,-910.98,0.00020671,2]
[321977758,1712669452710,-500.0,0.00020671,2]
[321977759,1712669452719,-1044.54,0.00020671,2]
[321977760,1712669452729,-500.0,0.00020671,2]
[321977761,1712669452739,-500.0,0.00020671,2]
[321977762,1712669452749,-500.0,0.00020671,2]
[321977763,1712669452759,-2013.06,0.00020671,2]
[321977764,1712669452769,-500.0,0.00020671,2]
[321977765,1712669452779,-1376.06,0.00020671,2]
[321977766,1712669452788,-500.0,0.00020671,2]
[321977767,1712669452797,-500.0,0.00020671,2]
[321977768,1712669452807,-500.0,0.00020671,2]
[321977769,1712669452817,-810.14,0.00020671,2]
[321977770,1712669452826,-1121.18,0.00020671,2]
[321977771,1712669452836,-271.90438315,0.00020671,2]
[321977772,1712669452847,-500.0,0.00020671,2]
[321977773,1712669452857,-500.0,0.00020671,2]
[321977774,1712669452867,-827.22,0.00020671,2]
[321977775,1712669452878,-500.0,0.00020671,2]
[321977776,1712669452888,-802.96,0.00020671,2]
[321977777,1712669453134,-500.0,0.00020671,2]
[321977778,1712669453145,-500.0,0.00020671,2]
[321977779,1712669453155,-1028.18,0.00020671,2]
[321977780,1712669453166,-158.06,0.00020671,2]
[321977781,1712669453177,-500.0,0.00020671,2]
[321977782,1712669453190,-500.0,0.00020671,2]
[321977783,1712669453200,-500.0,0.00020671,2]
[321977784,1712669453209,-500.0,0.00020671,2]
[321977785,1712669453219,-871.66,0.00020671,2]
[321977786,1712669453229,-500.0,0.00020671,2]
[321977787,1712669453241,-500.0,0.00020671,2]
[321977788,1712669453251,-500.0,0.00020671,2]
[321977789,1712669453262,-906.51,0.00020671,2]
[321977790,1712669453272,-500.0,0.00020671,2]
[321977791,1712669453282,-1023.03,0.00020671,2]
[321977792,1712669453292,-564.21,0.00020671,2]
[321977793,1712669453302,-500.0,0.00020671,2]
[321977794,1712669453312,-965.21,0.00020671,2]
[321977795,1712669453322,-1156.34,0.00020671,2]
[321977796,1712669453333,-500.0,0.00020671,2]
[321977797,1712669453344,-1811.17,0.00020671,2]
[321977798,1712669453354,-575.88,0.00020671,2]
[321977799,1712669453365,-773.83,0.00020671,2]
[321977800,1712669453374,-500.0,0.00020671,2]
[321977801,1712669453383,-1266.16,0.00020671,2]
[321977802,1712669453394,-1025.31,0.00020671,2]
[321977803,1712669453403,-500.0,0.00020671,2]
[321977804,1712669453413,-944.47,0.00020671,2]
[321977805,1712669453425,-500.0,0.00020671,2]
[321977806,1712669453435,-583.03,0.00020671,2]
[321977807,1712669453449,-500.0,0.00020671,2]
[321977808,1712669453459,-518.93,0.00020671,2]
[321977809,1712669453469,-1675.98,0.00020671,2]
[321977810,1712669453479,-500.0,0.00020671,2]
[321977811,1712669453490,-500.0,0.00020671,2]
[321977812,1712669453501,-1299.28,0.00020671,2]
[321977813,1712669453511,-500.0,0.00020671,2]
[321977814,1712669453522,-1004.59,0.00020671,2]
[321977815,1712669453533,-500.0,0.00020671,2]
[321977816,1712669453543,-602.65,0.00020671,2]
[321977817,1712669453554,-644.36,0.00020671,2]
[321977818,1712669453564,-500.0,0.00020671,2]
[321977819,1712669453573,-500.0,0.00020671,2]
[321977820,1712669453583,-1052.7,0.00020671,2]
[321977821,1712669453593,-500.0,0.00020671,2]
[321977822,1712669453602,-995.97,0.00020671,2]
[321977823,1712669453615,-245.08709582,0.00020672,2]
[321977824,1712669453625,-950.73,0.00020672,2]
[321977825,1712669453635,-538.16,0.00020672,2]
[321977826,1712669453645,-548.13,0.00020672,2]
[321977827,1712669453655,-973.41,0.00020672,2]
[321977828,1712669453667,-850.75,0.00020672,2]
[321977829,1712669453677,-521.36,0.00020672,2]
[321977830,1712669453687,-920.28,0.00020672,2]
[321977831,1712669453697,-1185.78,0.00020672,2]
[321977832,1712669453707,-1010.85,0.00020672,2]
[321977833,1712669453717,-1529.36,0.00020672,2]
[321977834,1712669453727,-7095.0,0.00020673,2]
[321977835,1712669453737,-215.01463966,0.00020673,2]
[321977836,1712669453747,-410.913049,0.00020674,2]
[321977837,1712669453759,-150.0,0.00020675,2]
[321977838,1712669453769,-150.0,0.00020675,2]
[321977839,1712669453779,-150.0,0.00020675,2]
[321977840,1712669453790,-150.0,0.00020675,2]
[321977841,1712669453802,-150.0,0.00020675,2]
[321977842,1712669453812,-150.0,0.00020675,2]
[321977843,1712669453821,-150.0,0.00020675,2]
[321977844,1712669453831,-150.0,0.00020675,2]
[321977845,1712669453841,-150.0,0.00020675,2]
[321977846,1712669453851,-150.0,0.00020675,2]
[321977847,1712669453863,-150.0,0.00020675,2]
[321977848,1712669453872,-151.55,0.00020675,2]
[321977849,1712669453882,-3744.673,0.00020677,2]
[321977850,1712669453892,-470.24932596,0.00020679,2]
[321977851,1712669453901,-500.0,0.00020688,2]
[321977852,1712669453911,-500.0,0.00020688,2]
[321977853,1712669453920,-538.3,0.00020688,2]
[321977854,1712669453929,-500.0,0.00020688,2]
[321977855,1712669453938,-3296.6,0.00020689,2]
[321977856,1712669453947,-1852.67,0.00020689,2]
[321977857,1712669453956,-2703.56,0.00020689,2]
[321977858,1712669453965,-3103.3,0.00020689,2]
[321977859,1712669453974,-1020.19,0.00020689,2]
[321977860,1712669453984,-2379.46,0.00020689,2]
[321977861,1712669453994,-3820.83,0.00020689,2]
[321977862,1712669454003,-8174.18,0.00020689,2]
[321977863,1712669454012,-2996.93,0.00020689,2]
[321977864,1712669454021,-3735.51,0.00020689,2]
[321977865,1712669454031,-17240.38,0.00020689,2]
[321977866,1712669454041,-1853.34,0.00020689,2]
[321977867,1712669454051,-3941.86,0.00020689,2]
[321977868,1712669454061,-500.0,0.00020689,2]
[321977869,1712669454072,-500.0,0.00020689,2]
[321977870,1712669454081,-2220.46,0.00020689,2]
[321977871,1712669454091,-5609.13,0.00020689,2]
[321977872,1712669454101,-500.0,0.00020689,2]
[321977873,1712669454114,-500.0,0.00020689,2]
[321977874,1712669454123,-500.0,0.00020689,2]
[321977875,1712669454133,-2903.58,0.00020689,2]
[321977876,1712669454142,-500.0,0.00020689,2]
[321977877,1712669454152,-5878.37,0.00020689,2]
[321977878,1712669454162,-500.0,0.00020689,2]
[321977879,1712669454171,-948.98,0.00020689,2]
[321977880,1712669454181,-4885.82,0.00020689,2]
[321977881,1712669454191,-500.0,0.00020689,2]
[321977882,1712669454200,-500.0,0.00020689,2]
[321977883,1712669454209,-2869.03,0.00020689,2]
[321977884,1712669454218,-500.0,0.00020689,2]
[321977885,1712669454228,-2604.67,0.00020689,2]
[321977886,1712669454237,-765.97,0.00020689,2]
[321977887,1712669454247,-8277.76,0.0002069,2]
[321977888,1712669454259,-4795.44,0.0002069,2]
[321977889,1712669454269,-500.0,0.0002069,2]
[321977890,1712669454280,-2333.53,0.0002069,2]
[321977891,1712669454290,-1370.22,0.0002069,2]
[321977892,1712669454299,-2182.34,0.0002069,2]
[321977893,1712669454308,-2507.94,0.0002069,2]
[321977894,1712669454318,-2390.18,0.0002069,2]
[321977895,1712669454328,-2376.36,0.0002069,2]
[321977896,1712669454337,-5058.16,0.0002069,2]
[321977897,1712669454347,-1582.84,0.0002069,2]
[321977898,1712669454356,-4354.56,0.0002069,2]
[321977899,1712669454367,-5185.26,0.0002069,2]
[321977900,1712669454377,-1057.75,0.0002069,2]
[321977901,1712669454386,-16888.19,0.0002069,2]
[321977902,1712669454395,-3345.61,0.0002069,2]
[321977903,1712669454404,-1311.3,0.0002069,2]
[321977904,1712669454413,-7705.81,0.0002069,2]
[321977905,1712669454422,-2122.98,0.0002069,2]
[321977906,1712669454431,-3027.36,0.0002069,2]
[321977907,1712669454441,-1582.44,0.0002069,2]
[321977908,1712669454451,-500.0,0.0002069,2]
[321977909,1712669454463,-2719.32,0.0002069,2]
[321977910,1712669454473,-3205.12,0.0002069,2]
[321977911,1712669454482,-4727.66,0.0002069,2]
[321977912,1712669454493,-4843.57,0.0002069,2]
[321977913,1712669454503,-4220.46,0.0002069,2]
[321977914,1712669454512,-2080.04,0.0002069,2]
[321977915,1712669454521,-1558.71,0.0002069,2]
[321977916,1712669454531,-500.0,0.0002069,2]
[321977917,1712669454541,-1587.21,0.0002069,2]
[321977918,1712669454551,-1426.67,0.0002069,2]
[321977919,1712669454560,-3204.87,0.0002069,2]
[321977920,1712669454569,-2122.68,0.0002069,2]
[321977921,1712669454579,-3785.14,0.0002069,2]
[321977922,1712669454589,-500.0,0.00020691,2]
[321977923,1712669454598,-500.0,0.00020691,2]
[321977924,1712669454610,-675.92,0.00020691,2]
[321977925,1712669454619,-533.34,0.00020691,2]
[321977926,1712669454629,-500.0,0.00020691,2]
[321977927,1712669454639,-1381.84,0.00020691,2]
[321977928,1712669454649,-578.63,0.00020691,2]
[321977929,1712669454658,-1276.04,0.00020691,2]
[321977930,1712669454667,-500.0,0.00020691,2]
[321977931,1712669454677,-1087.06,0.00020691,2]
[321977932,1712669454687,-1168.71,0.00020691,2]
[321977933,1712669454696,-981.74,0.00020691,2]
[321977934,1712669454706,-741.39,0.00020691,2]
[321977935,1712669454716,-500.0,0.00020691,2]
[321977936,1712669454725,-717.08,0.00020691,2]
[321977937,1712669454735,-1146.55,0.00020691,2]
[321977938,1712669454744,-1509.06,0.00020691,2]
[321977939,1712669454753,-676.84,0.00020691,2]
[321977940,1712669454762,-1519.72,0.00020691,2]
[321977941,1712669454772,-827.28,0.00020691,2]
[321977942,1712669454780,-500.0,0.00020691,2]
[321977943,1712669454789,-1068.63,0.00020691,2]
[321977944,1712669454799,-1134.69,0.00020691,2]
[321977945,1712669454808,-1360.22,0.00020691,2]
[321977946,1712669454816,-500.0,0.00020691,2]
[321977947,1712669454826,-1167.61,0.00020691,2]
[321977948,1712669454835,-820.87,0.00020691,2]
[321977949,1712669454844,-500.0,0.00020691,2]
[321977950,1712669454854,-675.79,0.00020691,2]
[321977951,1712669454867,-648.41,0.00020691,2]
[321977952,1712669454876,-1324.47,0.00020691,2]
[321977953,1712669454887,-1060.73,0.00020691,2]
[321977954,1712669454897,-936.62,0.00020691,2]
[321977955,1712669454906,-500.0,0.00020691,2]
[321977956,1712669454916,-2909.33,0.00020691,2]
[321977957,1712669454925,-500.0,0.00020691,2]
[321977958,1712669454934,-1061.87,0.00020691,2]
[321977959,1712669454944,-500.0,0.00020691,2]
[321977960,1712669454953,-500.0,0.00020691,2]
[321977961,1712669454963,-590.66727436,0.00020691,2]
[321977962,1712669454972,-500.0,0.00020691,2]
[321977963,1712669454982,-573.55,0.00020691,2]
[321977964,1712669454991,-500.0,0.00020691,2]
[321977965,1712669455000,-1640.08,0.00020691,2]
[321977966,1712669455009,-500.0,0.00020691,2]
[321977967,1712669455018,-500.0,0.00020691,2]
[321977968,1712669455028,-963.59,0.00020691,2]
[321977969,1712669455037,-996.85,0.00020691,2]
[321977970,1712669455048,-500.0,0.00020691,2]
[321977971,1712669455058,-1027.12,0.00020691,2]
[321977972,1712669455068,-2069.43,0.00020691,2]
[321977973,1712669455077,-500.0,0.00020691,2]
[321977974,1712669455088,-864.48,0.00020691,2]
[321977975,1712669455097,-1049.18,0.00020691,2]
[321977976,1712669455106,-500.0,0.00020691,2]
[321977977,1712669455117,-500.0,0.00020691,2]
[321977978,1712669455126,-595.48,0.00020691,2]
[321977979,1712669455135,-500.0,0.00020691,2]
[321977980,1712669455144,-1681.56,0.00020691,2]
[321977981,1712669455154,-1170.49,0.00020691,2]
[321977982,1712669455165,-1085.61,0.00020691,2]
[321977983,1712669455175,-500.0,0.00020691,2]
[321977984,1712669455184,-1249.99,0.00020691,2]
[321977985,1712669455193,-3113.72,0.00020691,2]
[321977986,1712669455202,-1458.67,0.00020691,2]
[321977987,1712669455212,-5345.61,0.00020691,2]
[321977988,1712669455221,-733.1,0.00020691,2]
[321977989,1712669455230,-10188.83,0.00020691,2]
[321977990,1712669455240,-1366.87,0.00020691,2]
[321977991,1712669455250,-5960.33,0.00020691,2]
[321977992,1712669455260,-500.56343459,0.00020691,2]
[321977993,1712669455270,-643.58,0.00020691,2]
[321977994,1712669455279,-500.0,0.00020691,2]
[321977995,1712669455289,-15193.48,0.00020691,2]
[321977996,1712669455299,-2186.12,0.00020691,2]
[321977997,1712669455309,-917.53,0.00020691,2]
[321977998,1712669455321,-4961.31,0.00020691,2]
[321977999,1712669455330,-9935.38,0.00020691,2]
[321978000,1712669455340,-1899.52,0.00020691,2]
[321978001,1712669455350,-1311.42,0.00020691,2]
[321978002,1712669455359,-9486.91,0.00020691,2]
[321978003,1712669455369,-569.96,0.00020691,2]
[321978004,1712669455378,-1506.36,0.00020691,2]
[321978005,1712669455388,-20874.07,0.00020691,2]
[321978006,1712669455397,-1685.47,0.00020691,2]
[321978007,1712669455407,-1526.76,0.00020691,2]
[321978008,1712669455416,-15761.41,0.00020691,2]
[321978009,1712669455426,-712.91,0.00020691,2]
[321978010,1712669455436,-583.85,0.00020691,2]
[321978011,1712669455449,-500.0,0.00020691,2]
[321978012,1712669455458,-850.66,0.00020691,2]
[321978013,1712669455467,-500.0,0.00020691,2]
[321978014,1712669455477,-500.0,0.00020691,2]
[321978015,1712669455486,-48042.9,0.00020691,2]
[321978016,1712669455496,-1638.35,0.00020691,2]
[321978017,1712669455517,-1630.24,0.00020691,2]
[321978018,1712669455529,-2037.01,0.00020691,2]
[321978019,1712669455538,-1233.01,0.00020691,2]
[321978020,1712669455547,-1488.2,0.00020691,2]
[321978021,1712669455557,-2829.94,0.00020691,2]
[321978022,1712669455566,-786.56,0.00020691,2]
[321978023,1712669455575,-5839.93,0.00020691,2]
[321978024,1712669455585,-4227.66,0.00020691,2]
[321978025,1712669455594,-1751.36,0.00020691,2]
[321978026,1712669455603,-1340.59,0.00020691,2]
[321978027,1712669455615,-1281.32,0.00020691,2]
[321978028,1712669455625,-500.0,0.00020691,2]
[321978029,1712669455634,-738.44,0.00020691,2]
[321978030,1712669455643,-2096.46,0.00020691,2]
[321978031,1712669455652,-500.0,0.00020691,2]
[321978032,1712669455662,-576.36,0.00020692,2]
[321978033,1712669455671,-500.0,0.00020692,2]
[321978034,1712669455680,-538.19,0.00020692,2]
[321978035,1712669455690,-500.0,0.00020692,2]
[321978036,1712669455700,-500.0,0.00020692,2]
[321978037,1712669455709,-500.0,0.00020692,2]
[321978038,1712669455719,-654.22,0.00020692,2]
[321978039,1712669455728,-500.0,0.00020692,2]
[321978040,1712669455737,-500.0,0.00020692,2]
[321978041,1712669455747,-578.36,0.00020692,2]
[321978042,1712669455756,-500.0,0.00020692,2]
[321978043,1712669455765,-584.38260191,0.00020692,2]
[321978044,1712669455774,-500.0,0.00020692,2]
[321978045,1712669455783,-500.0,0.00020692,2]
[321978046,1712669455792,-193.77013062,0.00020692,2]
[321978047,1712669455801,-500.0,0.00020692,2]
[321978048,1712669455810,-500.0,0.00020692,2]
[321978049,1712669455819,-580.64,0.00020692,2]
[321978050,1712669455828,-500.0,0.00020692,2]
[321978051,1712669455837,-500.0,0.00020692,2]
[321978052,1712669455846,-265.15334787,0.00020692,2]
[321978053,1712669455855,-672.72,0.00020692,2]
[321978054,1712669455866,-500.0,0.00020692,2]
[321978055,1712669455874,-500.0,0.00020692,2]
[321978056,1712669455884,-500.0,0.00020692,2]
[321978057,1712669455893,-500.0,0.00020692,2]
[321978058,1712669455902,-500.0,0.00020692,2]
[321978059,1712669455912,-500.0,0.00020692,2]
[321978060,1712669455921,-500.0,0.00020692,2]
[321978061,1712669455930,-500.0,0.00020692,2]
[321978062,1712669455939,-500.0,0.00020692,2]
[321978063,1712669455949,-500.0,0.00020692,2]
[321978064,1712669455958,-500.0,0.00020692,2]
[321978065,1712669455967,-174.53670769,0.00020692,2]
[321978066,1712669455976,-500.0,0.00020692,2]
[321978067,1712669455985,-541.91,0.00020692,2]
[321978068,1712669455994,-500.0,0.00020692,2]
[321978069,1712669456004,-500.0,0.00020692,2]
[321978070,1712669456013,-500.0,0.00020692,2]
[321978071,1712669456022,-500.0,0.00020692,2]
[321978072,1712669456031,-500.0,0.00020692,2]
[321978073,1712669456040,-500.0,0.00020692,2]
[321978074,1712669456049,-500.0,0.00020692,2]
[321978075,1712669456058,-540.99,0.00020692,2]
[321978076,1712669456067,-504.51,0.00020692,2]
[321978077,1712669456076,-533.54,0.00020692,2]
[321978078,1712669456086,-500.0,0.00020692,2]
[321978079,1712669456095,-500.0,0.00020692,2]
[321978080,1712669456104,-500.0,0.00020692,2]
[321978081,1712669456115,-500.0,0.00020692,2]
[321978082,1712669456124,-514.13,0.00020692,2]